fUST/lending_fUST_20251002
["ID","MTS","AMOUNT","RATE_DAILY","PERIOD"]
[388815737,1759387839859,-256.82383893,0.0002076,2]
[388815739,1759387839868,-151.0,0.0002076,2]
[388815742,1759387839877,-151.0,0.0002076,2]
[388815745,1759387839886,-151.0,0.0002076,2]
[388815747,1759387839896,-152.79571054,0.0002076,2]
[388815748,1759387839905,-151.0,0.0002076,2]
[388815751,1759387839915,-151.0,0.0002076,2]
[388815753,1759387839926,-151.0,0.0002076,2]
[388815755,1759387839937,-1368.59,0.00020768,3]
[388815757,1759387839947,-684.29,0.00020768,3]
[388815758,1759387839956,-342.15,0.00020768,3]
[388815760,1759387839966,-171.07,0.00020768,3]
[388815763,1759387839977,-513.26,0.00020768,3]
[388815765,1759387839987,-500.0,0.00020773,2]
[388815767,1759387839998,-303.14886399,0.00020773,2]
[388815769,1759387840008,-500.0,0.00020773,2]
[388815770,1759387840018,-500.0,0.00020773,2]
[388815771,1759387840028,-500.0,0.00020773,2]
[388815772,1759387840038,-500.0,0.00020773,2]
[388815773,1759387840048,-500.0,0.00020773,2]
[388815774,1759387840057,-500.0,0.00020773,2]
[388815775,1759387840067,-500.0,0.00020773,2]
[388815776,1759387840076,-503.93675535,0.00020773,2]
[388815777,1759387840086,-500.0,0.00020773,2]
[388815778,1759387840095,-500.0,0.00020773,2]
[388815779,1759387840105,-500.0,0.00020773,2]
[388815780,1759387840114,-500.0,0.00020773,2]
[388815781,1759387840123,-501.62775985,0.00020773,2]
[388815782,1759387840133,-500.0,0.00020773,2]
[388815783,1759387840142,-500.51909188,0.00020773,2]
[388815784,1759387840151,-500.0,0.00020773,2]
[388815785,1759387840160,-500.0,0.00020773,2]
[388815786,1759387840170,-500.0,0.00020773,2]
[388815788,1759387840179,-501.95754591,0.00020773,2]
[388815790,1759387840187,-500.0,0.00020773,2]
[388815791,1759387840196,-500.0,0.00020773,2]
[388815792,1759387840205,-500.0,0.00020773,2]
[388815793,1759387840214,-500.0,0.00020773,2]
[388815794,1759387840224,-500.0,0.00020773,2]
[388815795,1759387840233,-500.0,0.00020773,2]
[388815796,1759387840242,-503.56110543,0.00020773,2]
[388815797,1759387840251,-500.0,0.00020773,2]
[388815798,1759387840260,-500.0,0.00020773,2]
[388815799,1759387840269,-500.0,0.00020773,2]
[388815800,1759387840279,-500.0,0.00020773,2]
[388815801,1759387840288,-500.0,0.00020773,2]
[388815802,1759387840297,-500.0,0.00020773,2]
[388815803,1759387840306,-500.0,0.00020773,2]
[388815804,1759387840315,-500.0,0.00020773,2]
[388815805,1759387840324,-502.35773185,0.00020773,2]
[388815806,1759387840333,-500.0,0.00020773,2]
[388815807,1759387840342,-500.0,0.00020773,2]
[388815808,1759387840351,-509.83073558,0.00020773,2]
[388815809,1759387840360,-500.0,0.00020773,2]
[388815810,1759387840370,-500.0,0.00020773,2]
[388815811,1759387840379,-500.0,0.00020773,2]
[388815812,1759387840388,-500.0,0.00020773,2]
[388815813,1759387840398,-500.77721047,0.00020773,2]
[388815814,1759387840407,-500.0,0.00020773,2]
[388815815,1759387840416,-503.9115301,0.00020773,2]
[388815816,1759387840426,-500.0,0.00020773,2]
[388815817,1759387840435,-500.0,0.00020773,2]
[388815818,1759387840444,-150.0,0.00020773,2]
[388815819,1759387840453,-500.0,0.00020773,2]
[388815820,1759387840463,-500.88574739,0.00020773,2]
[388815821,1759387840472,-500.0,0.00020778,2]
[388815822,1759387840482,-182.98417066,0.00020789,2]
[388815823,1759387840491,-160.0,0.00020789,2]
[388815824,1759387840500,-161.53600708,0.00020789,2]
[388815825,1759387840510,-370000.0,0.0002079,2]
[388815826,1759387840519,-1434.80688026,0.00020802,2]
[388815827,1759387840528,-490.02703835,0.00020806,7]
[388815828,1759387840539,-1434.80688026,0.00020886,2]
[388815829,1759387840549,-300.50381858,0.0002091,2]
[388815830,1759387840558,-500.0,0.00021052,2]
[388815831,1759387840568,-297.0,0.0002111,2]
[388815832,1759387840577,-300.0,0.00021149,20]
[388815833,1759387840587,-300.0,0.00021149,20]
[388815834,1759387840596,-1434.80688026,0.00021151,2]
[388815835,1759387840605,-167.83569748,0.00021169,2]
[388815836,1759387840615,-166.0,0.00021308,2]
[388815837,1759387840624,-600.0,0.00021309,20]
[388815838,1759387840634,-216.7,0.00021309,20]
[388815839,1759387840643,-216.68,0.00021309,20]
[388815840,1759387840652,-1000.0,0.00021321,2]
[388815841,1759387840661,-1000.0,0.00021321,2]
[388815842,1759387840671,-1000.0,0.00021321,2]
[388815843,1759387840681,-1000.0,0.00021321,2]
[388815844,1759387840690,-1070.75014377,0.00021321,2]
[388815845,1759387840699,-1000.0,0.00021321,2]
[388815846,1759387840708,-1000.0,0.00021321,2]
[388815847,1759387840717,-1000.0,0.00021321,2]
[388815848,1759387840727,-558.4026309,0.00021321,2]
[388815849,1759387840736,-1000.0,0.00021321,2]
[388815850,1759387840746,-1000.0,0.00021321,2]
[388815851,1759387840755,-1000.0,0.00021321,2]
[388815852,1759387840764,-1000.0,0.00021321,2]
[388815853,1759387840774,-1000.0,0.00021321,2]
[388815854,1759387840783,-895.90823976,0.00021321,2]
[388815855,1759387840860,-1000.0,0.00021321,2]
[388815856,1759387840870,-1000.0,0.00021321,2]
[388815857,1759387840879,-1000.0,0.00021321,2]
[388815858,1759387840888,-502.26452921,0.00021321,2]
[388815859,1759387840897,-969.30682101,0.00021321,2]
[388815860,1759387840906,-955.83560235,0.00021321,2]
[388815861,1759387840916,-1000.0,0.00021321,2]
[388815862,1759387840924,-964.71334271,0.00021321,2]
[388815863,1759387840933,-455.59347907,0.00021321,2]
[388815864,1759387840943,-1000.0,0.00021321,2]
[388815865,1759387840952,-1000.0,0.00021321,2]
[388815866,1759387840961,-1000.0,0.00021321,2]
[388815867,1759387840970,-501.60768823,0.00021321,2]
[388815868,1759387840979,-1000.0,0.00021321,2]
[388815869,1759387840989,-500.0,0.00021321,2]
[388815870,1759387840998,-1000.0,0.00021321,2]
[388815871,1759387841007,-1000.0,0.00021321,2]
[388815872,1759387841017,-1000.0,0.00021321,2]
[388815873,1759387841026,-500.0,0.00021321,2]
[388815874,1759387841035,-1000.0,0.00021321,2]
[388815875,1759387841044,-500.94328462,0.00021321,2]
[388815876,1759387841053,-500.99839701,0.00021321,2]
[388815877,1759387841062,-1000.0,0.00021321,2]
[388815878,1759387841072,-1000.0,0.00021321,2]
[388815879,1759387841081,-1000.0,0.00021321,2]
[388815880,1759387841091,-500.0,0.00021325,2]
[388815881,1759387841101,-349.0,0.00021331,2]
[388815882,1759387841110,-300.0,0.00021391,20]
[388815883,1759387841125,-800.0,0.00021391,2]
[388815884,1759387841134,-600.0,0.00021409,20]
[388815885,1759387841147,-4895.08821957,0.0002152,2]
[388815886,1759387841156,-1756.36136718,0.0002153,2]
[388815887,1759387841166,-305.93289526,0.00021562,2]
[388815888,1759387841175,-38795.54323349,0.00021563,2]
[388815900,1759387844757,-151.0,0.0002076,2]
[388815901,1759387844766,-151.0,0.0002076,2]
[388815902,1759387844775,-151.0,0.0002076,2]
[388815903,1759387844785,-151.0,0.0002076,2]
[388815904,1759387844794,-151.0,0.0002076,2]
[388815905,1759387844804,-151.0,0.0002076,2]
[388815906,1759387844813,-151.0,0.0002076,2]
[388815907,1759387844823,-151.0,0.0002076,2]
[388815908,1759387844832,-42145.98630271,0.00021563,2]
[388815909,1759387844842,-1453.1116081,0.00021563,2]
[388815910,1759387844851,-2606.9099252,0.00021563,2]
[388815911,1759387844860,-587.957099,0.00021563,2]
[388815912,1759387844869,-587.957099,0.00021563,2]
[388815913,1759387844879,-587.957099,0.00021563,2]
[388815914,1759387844888,-587.957099,0.00021563,2]
[388815916,1759387844898,-151.0,0.00021563,2]
[388815918,1759387844907,-151.0,0.00021563,2]
[388815919,1759387844916,-152.856783,0.00021563,2]
[388815920,1759387844925,-299.388502,0.00021563,2]
[388815921,1759387844935,-151.0,0.00021563,2]
[388815922,1759387844944,-299.388502,0.00021563,2]
[388815924,1759387844953,-299.388502,0.00021563,2]
[388815926,1759387844963,-299.388502,0.00021563,2]
[388815927,1759387844972,-151.0,0.00021563,2]
[388815928,1759387844981,-151.0,0.00021563,2]
[388815929,1759387844991,-151.0,0.00021563,2]
[388815930,1759387845000,-151.0,0.00021563,2]
[388815931,1759387845010,-151.0,0.00021563,2]
[388815932,1759387845019,-151.0,0.00021563,2]
[388815933,1759387845029,-151.0,0.00021563,2]
[388815934,1759387845039,-151.0,0.00021563,2]
[388815935,1759387845048,-153.4775,0.00021563,2]
[388815936,1759387845057,-153.902967,0.00021563,2]
[388815937,1759387845067,-151.0,0.00021563,2]
[388815938,1759387845077,-151.0,0.00021563,2]
[388815939,1759387845087,-151.0,0.00021563,2]
[388815940,1759387845097,-151.0,0.00021563,2]
[388815941,1759387845107,-151.0,0.00021563,2]
[388815942,1759387845120,-151.0,0.00021563,2]
[388815943,1759387845129,-152.470677,0.00021563,2]
[388815944,1759387845140,-151.0,0.00021563,2]
[388815945,1759387845149,-151.0,0.00021563,2]
[388815946,1759387845158,-151.0,0.00021563,2]
[388815947,1759387845168,-151.0,0.00021563,2]
[388815948,1759387845178,-151.0,0.00021563,2]
[388815949,1759387845188,-237.423303,0.00021563,2]
[388815950,1759387845197,-237.423303,0.00021563,2]
[388815951,1759387845208,-237.423303,0.00021563,2]
[388815952,1759387845217,-237.423303,0.00021563,2]
[388815953,1759387845226,-151.0,0.00021563,2]
[388815954,1759387845235,-151.0,0.00021563,2]
[388815955,1759387845244,-151.0,0.00021563,2]
[388815956,1759387845254,-151.0,0.00021563,2]
[388815957,1759387845263,-471.11802,0.00021563,2]
[388815958,1759387845273,-151.0,0.00021563,2]
[388815959,1759387845282,-471.11802,0.00021563,2]
[388815960,1759387845292,-471.11802,0.00021563,2]
[388815961,1759387845303,-471.11802,0.00021563,2]
[388815962,1759387845313,-152.632074,0.00021563,2]
[388815963,1759387845325,-151.0,0.00021563,2]
[388815964,1759387845336,-151.0,0.00021563,2]
[388815965,1759387845345,-234.688763,0.00021563,2]
[388815966,1759387845356,-234.688763,0.00021563,2]
[388815972,1759387845472,-234.688763,0.00021563,2]
[388815973,1759387845487,-234.688763,0.00021563,2]
[388815974,1759387845497,-151.0,0.00021563,2]
[388815975,1759387845507,-151.0,0.00021563,2]
[388815976,1759387845516,-151.0,0.00021563,2]
[388815977,1759387845526,-151.0,0.00021563,2]
[388815978,1759387845535,-151.0,0.00021563,2]
[388815979,1759387845544,-284.239663,0.00021563,2]
[388815980,1759387845554,-151.0,0.00021563,2]
[388815981,1759387845563,-151.0,0.00021563,2]
[388815982,1759387845573,-151.0,0.00021563,2]
[388815983,1759387845582,-151.0,0.00021563,2]
[388815984,1759387845592,-151.0,0.00021563,2]
[388815985,1759387845601,-151.0,0.00021563,2]
[388815986,1759387845610,-151.0,0.00021563,2]
[388815987,1759387845619,-151.0,0.00021563,2]
[388815988,1759387845630,-254.643056,0.00021563,2]
[388815989,1759387845639,-254.643056,0.00021563,2]
[388815990,1759387845648,-254.643056,0.00021563,2]
[388815991,1759387845657,-254.643056,0.00021563,2]
[388815992,1759387845666,-151.0,0.00021563,2]
[388815993,1759387845676,-778.449475,0.00021563,2]
[388815994,1759387845685,-778.449475,0.00021563,2]
[388815995,1759387845695,-778.449475,0.00021563,2]
[388815996,1759387845704,-778.449475,0.00021563,2]
[388815997,1759387845714,-151.0,0.00021563,2]
[388815998,1759387845723,-151.0,0.00021563,2]
[388815999,1759387845733,-151.0,0.00021563,2]
[388816000,1759387845742,-151.0,0.00021563,2]
[388816001,1759387845751,-151.0,0.00021563,2]
[388816002,1759387845760,-151.0,0.00021563,2]
[388816003,1759387845769,-183.476538,0.00021563,2]
[388816004,1759387845779,-183.476538,0.00021563,2]
[388816005,1759387845788,-183.476538,0.00021563,2]
[388816006,1759387845797,-183.476538,0.00021563,2]
[388816007,1759387845806,-168.544933,0.00021563,2]
[388816008,1759387845815,-168.544933,0.00021563,2]
[388816009,1759387845825,-168.544933,0.00021563,2]
[388816010,1759387845834,-151.0,0.00021563,2]
[388816011,1759387845844,-168.544933,0.00021563,2]
[388816012,1759387845853,-151.0,0.00021563,2]
[388816013,1759387845862,-151.0,0.00021563,2]
[388816014,1759387845872,-151.0,0.00021563,2]
[388816015,1759387845881,-151.0,0.00021563,2]
[388816016,1759387845890,-168.295012,0.00021563,2]
[388816017,1759387845899,-151.0,0.00021563,2]
[388816018,1759387845908,-151.0,0.00021563,2]
[388816019,1759387845918,-152.468821,0.00021563,2]
[388816020,1759387845927,-409.987221,0.00021563,2]
[388816021,1759387845936,-10000.0,0.00021563,2]
[388816022,1759387845946,-409.987221,0.00021563,2]
[388816023,1759387845955,-10000.0,0.00021563,2]
[388816024,1759387845964,-151.0,0.00021563,2]
[388816025,1759387845973,-409.987221,0.00021563,2]
[388816026,1759387845982,-10000.0,0.00021563,2]
[388816027,1759387845991,-151.0,0.00021563,2]
[388816028,1759387846001,-409.987221,0.00021563,2]
[388816029,1759387846010,-151.0,0.00021563,2]
[388816030,1759387846020,-10000.0,0.00021563,2]
[388816031,1759387846029,-151.0,0.00021563,2]
[388816032,1759387846038,-151.0,0.00021563,2]
[388816033,1759387846048,-4926.840525,0.00021563,2]
[388816034,1759387846057,-151.0,0.00021563,2]
[388816035,1759387846066,-151.0,0.00021563,2]
[388816036,1759387846076,-151.0,0.00021563,2]
[388816037,1759387846085,-151.0,0.00021563,2]
[388816038,1759387846095,-151.0,0.00021563,2]
[388816039,1759387846104,-151.0,0.00021563,2]
[388816040,1759387846113,-154.801665,0.00021563,2]
[388816041,1759387846123,-151.0,0.00021563,2]
[388816042,1759387846132,-151.0,0.00021563,2]
[388816043,1759387846142,-151.0,0.00021563,2]
[388816044,1759387846151,-260.958016,0.00021563,2]
[388816045,1759387846160,-151.0,0.00021563,2]
[388816046,1759387846169,-163.80817,0.00021563,2]
[388816047,1759387846178,-151.0,0.00021563,2]
[388816048,1759387846187,-163.80817,0.00021563,2]
[388816049,1759387846195,-163.80817,0.00021563,2]
[388816050,1759387846204,-163.80817,0.00021563,2]
[388816051,1759387846214,-151.0,0.00021563,2]
[388816052,1759387846223,-151.0,0.00021563,2]
[388816053,1759387846232,-151.0,0.00021563,2]
[388816054,1759387846241,-152.823349,0.00021563,2]
[388816055,1759387846250,-218.90518,0.00021563,2]
[388816056,1759387846259,-151.0,0.00021563,2]
[388816057,1759387846268,-151.0,0.00021563,2]
[388816058,1759387846278,-151.0,0.00021563,2]
[388816060,1759387846287,-222.034005,0.00021563,2]
[388816062,1759387846296,-151.0,0.00021563,2]
[388816064,1759387846305,-222.034005,0.00021563,2]
[388816065,1759387846314,-151.0,0.00021563,2]
[388816067,1759387846324,-151.0,0.00021563,2]
[388816068,1759387846333,-222.034005,0.00021563,2]
[388816069,1759387846343,-195.697187,0.00021563,2]
[388816070,1759387846352,-222.034005,0.00021563,2]
[388816071,1759387846361,-151.0,0.00021563,2]
[388816072,1759387846370,-452.22561306,0.00021573,2]
[388816073,1759387846379,-501.03122643,0.00021573,2]
[388816074,1759387846388,-500.0,0.00021573,2]
[388816075,1759387846398,-500.0,0.00021573,2]
[388816076,1759387846407,-500.0,0.00021573,2]
[388816077,1759387846417,-500.0,0.00021573,2]
[388816078,1759387846426,-500.0,0.00021573,2]
[388816079,1759387846435,-500.0,0.00021573,2]
[388816080,1759387846444,-500.0,0.00021573,2]
[388816081,1759387846454,-500.59302797,0.00021573,2]
[388816082,1759387846463,-500.0,0.00021573,2]
[388816083,1759387846472,-500.0,0.00021573,2]
[388816084,1759387846481,-500.0,0.00021573,2]
[388816085,1759387846491,-532.90798676,0.00021573,2]
[388816086,1759387846500,-500.0,0.00021573,2]
[388816087,1759387846510,-500.0,0.00021573,2]
[388816088,1759387846521,-500.0,0.00021573,2]
[388816089,1759387846530,-500.0,0.00021573,2]
[388816090,1759387846540,-575.61639827,0.00021573,2]
[388816091,1759387846549,-500.0,0.00021573,2]
[388816092,1759387846559,-478.50731054,0.00021573,2]
[388816093,1759387846569,-517.46344765,0.00021573,2]
[388816094,1759387846581,-215.28250369,0.00021573,2]
[388816095,1759387846590,-500.0,0.00021573,2]
[388816096,1759387846600,-500.0,0.00021573,2]
[388816097,1759387846610,-500.0,0.00021573,2]
[388816098,1759387846619,-500.0,0.00021573,2]
[388816099,1759387846628,-500.0,0.00021573,2]
[388816100,1759387846638,-500.0,0.00021573,2]
[388816101,1759387846647,-500.0,0.00021573,2]
[388816102,1759387846656,-500.0,0.00021573,2]
[388816103,1759387846665,-500.0,0.00021573,2]
[388816104,1759387846674,-500.0,0.00021573,2]
[388816106,1759387846684,-501.76524436,0.00021573,2]
[388816108,1759387846693,-500.0,0.00021573,2]
[388816110,1759387846701,-500.0,0.00021573,2]
[388816111,1759387846711,-170.78737528,0.00021573,2]
[388816113,1759387846720,-502.36042457,0.00021573,2]
[388816114,1759387846728,-214.0,0.00021589,5]
[388816115,1759387846738,-1434.80688031,0.0002159,2]
[388816116,1759387846747,-800.0,0.00021597,2]
[388816117,1759387846756,-500.0,0.00021599,2]
[388816118,1759387846765,-160.0,0.00021665,2]
[388816119,1759387846774,-364.5122504,0.00021688,2]
[388816120,1759387846783,-232.06304241,0.00021688,2]
[388816121,1759387846792,-928.25216963,0.00021688,2]
[388816122,1759387846801,-477.57987838,0.00021688,2]
[388816123,1759387846811,-2088.56738167,0.00021688,2]
[388816124,1759387846820,-195.46355737,0.00021688,2]
[388816125,1759387846830,-781.85422949,0.00021688,2]
[388816126,1759387846839,-1910.31951351,0.00021688,2]
[388816127,1759387846849,-3713.00867852,0.00021688,2]
[388816128,1759387846859,-1759.17201636,0.00021688,2]
[388816129,1759387846868,-4298.2189054,0.00021688,2]
[388816130,1759387846878,-151.0,0.00021688,2]
[388816131,1759387846887,-151.0,0.00021688,2]
[388816132,1759387846896,-151.0,0.00021688,2]
[388816133,1759387846905,-222.034005,0.00021688,2]
[388816134,1759387846914,-151.0,0.00021688,2]
[388816135,1759387846924,-222.034005,0.00021688,2]
[388816136,1759387846933,-151.0,0.00021688,2]
[388816137,1759387846942,-151.0,0.00021688,2]
[388816138,1759387846952,-222.034005,0.00021688,2]
[388816139,1759387846961,-222.034005,0.00021688,2]
[388816140,1759387846970,-151.0,0.00021688,2]
[388816141,1759387846979,-210.0,0.00021765,2]
[388816142,1759387846988,-420.0,0.00021765,2]
[388816143,1759387846997,-492.0,0.00021766,2]
[388816144,1759387847006,-818.0,0.00021767,2]
[388816145,1759387847016,-151.0,0.00021776,2]
[388816146,1759387847025,-151.0,0.00021776,2]
[388816147,1759387847035,-151.0,0.00021776,2]
[388816148,1759387847044,-151.0,0.00021776,2]
[388816149,1759387847053,-163.80817,0.00021776,2]
[388816150,1759387847062,-151.0,0.00021776,2]
[388816151,1759387847071,-163.80817,0.00021776,2]
[388816152,1759387847080,-163.80817,0.00021776,2]
[388816153,1759387847089,-163.80817,0.00021776,2]
[388816154,1759387847100,-151.0,0.00021776,2]
[388816155,1759387847109,-151.0,0.00021776,2]
[388816156,1759387847122,-151.0,0.00021776,2]
[388816157,1759387847131,-818.0,0.00021776,2]
[388816158,1759387847140,-272.0,0.00021856,2]
[388816159,1759387847151,-151.0,0.00021868,2]
[388816160,1759387847162,-151.0,0.00021868,2]
[388816161,1759387847171,-151.0,0.00021868,2]
[388816162,1759387847181,-151.0,0.00021868,2]
[388816163,1759387847190,-151.0,0.00021868,2]
[388816164,1759387847280,-254.643056,0.00021868,2]
[388816165,1759387847290,-254.643056,0.00021868,2]
[388816166,1759387847299,-254.643056,0.00021868,2]
[388816167,1759387847309,-254.643056,0.00021868,2]
[388816168,1759387847318,-152.075036,0.00021868,2]
[388816169,1759387847327,-778.449475,0.00021868,2]
[388816170,1759387847337,-778.449475,0.00021868,2]
[388816171,1759387847346,-778.449475,0.00021868,2]
[388816172,1759387847355,-778.449475,0.00021868,2]
[388816173,1759387847364,-151.0,0.00021868,2]
[388816174,1759387847373,-151.0,0.00021868,2]
[388816175,1759387847382,-151.0,0.00021868,2]
[388816176,1759387847391,-151.0,0.00021868,2]
[388816177,1759387847400,-151.0,0.00021868,2]
[388816178,1759387847409,-152.117239,0.00021868,2]
[388816179,1759387847418,-183.476538,0.00021868,2]
[388816180,1759387847428,-183.476538,0.00021868,2]
[388816181,1759387847437,-183.476538,0.00021868,2]
[388816182,1759387847447,-183.476538,0.00021868,2]
[388816183,1759387847456,-168.544933,0.00021868,2]
[388816184,1759387847467,-168.544933,0.00021868,2]
[388816185,1759387847476,-168.544933,0.00021868,2]
[388816186,1759387847486,-151.0,0.00021868,2]
[388816187,1759387847495,-168.544933,0.00021868,2]
[388816188,1759387847504,-151.0,0.00021868,2]
[388816189,1759387847512,-151.0,0.00021868,2]
[388816190,1759387847521,-151.0,0.00021868,2]
[388816191,1759387847530,-151.0,0.00021868,2]
[388816192,1759387847539,-151.0,0.00021868,2]
[388816193,1759387847547,-151.0,0.00021868,2]
[388816194,1759387847556,-409.987221,0.00021868,2]
[388816195,1759387847565,-10000.0,0.00021868,2]
[388816196,1759387847575,-409.987221,0.00021868,2]
[388816197,1759387847584,-10000.0,0.00021868,2]
[388816198,1759387847593,-151.0,0.00021868,2]
[388816199,1759387847602,-409.987221,0.00021868,2]
[388816200,1759387847611,-10000.0,0.00021868,2]
[388816201,1759387847620,-151.0,0.00021868,2]
[388816202,1759387847629,-409.987221,0.00021868,2]
[388816203,1759387847638,-151.0,0.00021868,2]
[388816204,1759387847647,-10000.0,0.00021868,2]
[388816205,1759387847656,-151.0,0.00021868,2]
[388816206,1759387847665,-151.0,0.00021868,2]
[388816207,1759387847674,-151.0,0.00021868,2]
[388816208,1759387847683,-151.0,0.00021868,2]
[388816209,1759387847693,-151.0,0.00021868,2]
[388816210,1759387847702,-156.039495,0.00021868,2]
[388816211,1759387847711,-151.0,0.00021868,2]
[388816212,1759387847721,-151.0,0.00021868,2]
[388816213,1759387847730,-866.33195918,0.00021868,2]
[388816214,1759387847739,-221.0222689,0.00021868,2]
[388816215,1759387847749,-1500.0,0.00021868,2]
[388816216,1759387847759,-502.33761903,0.00021868,2]
[388816217,1759387847768,-502.62564647,0.00021868,2]
[388816218,1759387847777,-1500.0,0.00021868,2]
[388816219,1759387847787,-429.6711404,0.00021868,2]
[388816220,1759387847797,-500.0,0.00021868,2]
[388816221,1759387847806,-655.8260691,0.00021868,2]
[388816222,1759387847816,-1547.67995103,0.00021868,2]
[388816223,1759387847827,-502.58474246,0.00021868,2]
[388816224,1759387847837,-1002.64413986,0.00021868,2]
[388816225,1759387847847,-1000.0,0.00021868,2]
[388816226,1759387847856,-1500.0,0.00021868,2]
[388816227,1759387847865,-1500.0,0.00021868,2]
[388816228,1759387847875,-1500.0,0.00021868,2]
[388816229,1759387847884,-1500.0,0.00021868,2]
[388816230,1759387847893,-1500.0,0.00021868,2]
[388816231,1759387847902,-501.03166712,0.00021868,2]
[388816232,1759387847911,-1001.33730105,0.00021868,2]
[388816233,1759387847921,-1500.0,0.00021868,2]
[388816234,1759387847930,-1500.0,0.00021868,2]
[388816235,1759387847939,-1500.0,0.00021868,2]
[388816236,1759387847948,-1500.0,0.00021868,2]
[388816237,1759387847957,-500.0,0.00021873,2]
[388816238,1759387847967,-151.0,0.00021918,2]
[388816239,1759387847976,-151.0,0.00021918,2]
[388816240,1759387847985,-151.0,0.00021918,2]
[388816241,1759387847994,-151.0,0.00021918,2]
[388816242,1759387848004,-151.0,0.00021918,2]
[388816243,1759387848013,-151.0,0.00021918,2]
[388816244,1759387848022,-1000.0,0.00021931,2]
[388816245,1759387848032,-3127.41691797,0.00021958,2]
[388816246,1759387848042,-5801.57606019,0.00021972,2]
[388816247,1759387848051,-300.0,0.00021993,20]
[388816248,1759387848059,-300.0,0.00021993,20]
[388816249,1759387848069,-8000.0,0.00022011,2]
[388816250,1759387848080,-151.0,0.00022011,7]
[388816251,1759387848089,-151.0,0.00022011,7]
[388816252,1759387848099,-151.0,0.00022011,7]
[388816253,1759387848109,-151.0,0.00022011,7]
[388816254,1759387848119,-293.36416222,0.00022011,7]
[388816255,1759387848127,-160.0,0.00022011,7]
[388816256,1759387848137,-181.367481,0.00022011,7]
[388816257,1759387848146,-234.688763,0.00022011,7]
[388816258,1759387848155,-234.688763,0.00022011,7]
[388816259,1759387848165,-234.688763,0.00022011,7]
[388816260,1759387848174,-234.688763,0.00022011,7]
[388816261,1759387848183,-151.0,0.00022011,7]
[388816262,1759387848193,-151.0,0.00022011,7]
[388816263,1759387848202,-151.0,0.00022011,7]
[388816264,1759387848211,-151.0,0.00022011,7]
[388816265,1759387848220,-151.0,0.00022011,7]
[388816266,1759387848229,-151.0,0.00022011,7]
[388816267,1759387848238,-151.0,0.00022011,7]
[388816268,1759387848247,-151.0,0.00022011,7]
[388816269,1759387848256,-168.0,0.00022014,2]
[388816270,1759387848265,-1000.0,0.00022121,2]
[388816271,1759387848274,-1000.0,0.00022121,2]
[388816272,1759387848284,-507.27796519,0.00022121,2]
[388816273,1759387848293,-1000.0,0.00022121,2]
[388816274,1759387848302,-1000.0,0.00022121,2]
[388816275,1759387848311,-1000.0,0.00022121,2]
[388816276,1759387848321,-1002.66775775,0.00022121,2]
[388816277,1759387848330,-1000.0,0.00022121,2]
[388816278,1759387848340,-1000.0,0.00022121,2]
[388816279,1759387848349,-1000.0,0.00022121,2]
[388816280,1759387848359,-607.32738496,0.00022121,2]
[388816281,1759387848368,-1047.85041466,0.00022121,2]
[388816282,1759387848377,-1000.0,0.00022121,2]
[388816283,1759387848386,-1011.3447943,0.00022121,2]